[Event "EIWCC 2018"]
[Site "Vysoke Tatry"]
[Date "2018.04.10"]
[Round "3"]
[White "Motycakova, Monika"]
[Black "Slaba, Andrea"]
[Result "1-0"]
[ECO "C04"]
[WhiteElo "2207"]
[BlackElo "1924"]
[Annotator "NA"]
[PlyCount "73"]
[EventDate "2018.??.??"]
[EventType "swiss"]
[EventCountry "SVK"]
[SourceTitle "playchess.com"]
[Source "ChessBase"]
[SourceQuality "1"]
[TimeControl "40/5400+30:1800+30"]

1. e4 {[%emt 0:00:00]} e6 {[%emt 0:00:04]} 2. d4 {[%emt 0:00:00]} d5 {[%emt 0:00:04]} 3. Nd2 {[%emt 0:00:00]} Nc6 {[%emt 0:00:10]} 4. Ngf3 {[%emt 0:00:17]} Nf6 {[%emt 0:00:12]} 5. e5 {[%emt 0:00:20]} Nd7 {[%emt 0:00:08]} 6. Bd3 {[%emt 0:00:22]} Nb4 {[%emt 0:00:47]} 7. Be2 {[%emt 0:00:11]} c5 {[%emt 0:00:06]} 8. c3 {[%emt 0:00:07]} Nc6 {[%emt 0:00:12]} 9. O-O {[%emt 0:01:18]} Be7 {[%emt 0:01:12]} 10. Re1 {[%emt 0:03:15]} Qb6 {[%emt 0:01:25]} 11. Nb3 {[%emt 0:04:06]} cxd4 {[%emt 0:00:18]} 12. cxd4 {[%emt 0:00:24]} a5 {[%emt 0:03:23]} 13. a4 {[%emt 0:06:59]} O-O {[%emt 0:03:25]} 14. Bg5 {[%emt 0:09:07]} f6 {[%emt 0:03:58]} 15. exf6 {[%emt 0:02:51]} Nxf6 {[%emt 0:00:15]} 16. Bd3 {[%emt 0:02:55]} Qd8 {[%emt 0:15:36]} 17. Rc1 {[%emt 0:15:19]} Nb4 {[%emt 0:03:57]} 18. Bb1 {[%emt 0:02:48]} b6 {[%emt 0:07:01]} 19. Ne5 {[%emt 0:03:49]} Qe8 {[%emt 0:07:32]} 20. Re3 {[%emt 0:05:44]} Ne4 {[%emt 0:07:18]} 21. Bxe7 {[%emt 0:02:58]} Qxe7 {[%emt 0:02:51]} 22. Rh3 {[%emt 0:11:33]} Qg5 {[%emt 0:12:52]} 23. Rc7 {[%emt 0:13:57]} Ba6 {[%emt 0:10:02]} 24. Bxe4 {[%emt 0:08:48]} dxe4 {[%emt 0:00:04]} 25. Rg3 {[%emt 0:00:16]} Qf6 {[%emt 0:01:01]} 26. Qd2 {[%emt 0:01:50]} Nd5 {[%emt 0:05:10]} 27. Ng4 {[%emt 0:00:57]} Nxc7 {[%emt 0:03:49]} 28. Nxf6+ {[%emt 0:00:06]} Rxf6 {[%emt 0:00:11]} 29. Qg5 {[%emt 0:01:09]} Ne8 {[%emt 0:01:20]} 30. Nd2 {[%emt 0:00:35]} Bd3 {[%emt 0:00:20]} 31. Qe5 {[%emt 0:01:43]} Rc8 {[%emt 0:01:24]} 32. h3 {[%emt 0:00:44]} Rc1+ {[%emt 0:00:42]} 33. Kh2 {[%emt 0:00:00]} Rxf2 34. Qxe6+ Kf8 {[%emt 0:03:54]} 35. Nxe4 {[%emt 0:00:54]} Bxe4 {[%emt 0:01:31]} 36. Qxe4 {[%emt 0:00:02]} Rxb2 {[%emt 0:00:59]} 37. Qf4+ {[%emt 0:00:26]} 1-0

[Event "EIWCC 2018"]
[Site "Vysoke Tatry"]
[Date "2018.04.10"]
[Round "3"]
[White "Arda, Cagil Irmak"]
[Black "Balajayeva, Khanim"]
[Result "1/2-1/2"]
[ECO "C91"]
[WhiteElo "2199"]
[BlackElo "2348"]
[Annotator "NA"]
[PlyCount "39"]
[EventDate "2018.??.??"]
[EventType "swiss"]
[EventCountry "SVK"]
[SourceTitle "playchess.com"]
[Source "ChessBase"]
[SourceQuality "1"]
[TimeControl "40/5400+30:1800+30"]

1. e4 {[%emt 0:00:00]} e5 {[%emt 0:00:07]} 2. Nf3 {[%emt 0:00:01]} Nc6 {[%emt 0:00:04]} 3. Bb5 {[%emt 0:00:08]} a6 {[%emt 0:00:03]} 4. Ba4 {[%emt 0:00:07]} Nf6 {[%emt 0:00:05]} 5. O-O {[%emt 0:00:08]} Be7 {[%emt 0:00:04]} 6. Re1 {[%emt 0:00:08]} b5 {[%emt 0:00:10]} 7. Bb3 {[%emt 0:00:05]} d6 {[%emt 0:00:05]} 8. c3 {[%emt 0:00:06]} O-O {[%emt 0:00:13]} 9. d4 {[%emt 0:00:10]} Bg4 {[%emt 0:00:09]} 10. Be3 {[%emt 0:00:11]} Bh5 {[%emt 0:07:08]} 11. Nbd2 {[%emt 0:09:27]} d5 {[%emt 0:02:29]} 12. Qb1 {[%emt 0:19:41]} Bxf3 {[%emt 0:25:01]} 13. Nxf3 {[%emt 0:08:26]} exd4 {[%emt 0:02:27]} 14. Nxd4 {[%emt 0:00:30]} Nxd4 {[%emt 0:00:55]} 15. Bxd4 {[%emt 0:00:07]} dxe4 {[%emt 0:00:52]} 16. Bxf6 {[%emt 0:01:15]} Bxf6 {[%emt 0:00:04]} 17. Qxe4 {[%emt 0:02:35]} Re8 {[%emt 0:03:36]} 18. Qc6 {[%emt 0:10:30]} Be5 {[%emt 0:08:49]} 19. Rad1 {[%emt 0:13:59]} Qf6 {[%emt 0:08:19]} 20. Qxf6 {[%emt 0:01:21]} 1/2-1/2

[Event "EIWCC 2018"]
[Site "Vysoke Tatry"]
[Date "2018.04.10"]
[Round "3"]
[White "Chernyak, Viktoria"]
[Black "Sedina, Elena"]
[Result "1/2-1/2"]
[ECO "D10"]
[WhiteElo "2196"]
[BlackElo "2292"]
[Annotator "NA"]
[PlyCount "49"]
[EventDate "2018.??.??"]
[EventType "swiss"]
[EventCountry "SVK"]
[SourceTitle "playchess.com"]
[Source "ChessBase"]
[SourceQuality "1"]
[TimeControl "40/5400+30:1800+30"]

1. d4 {[%emt 0:00:00]} d5 {[%emt 0:00:12]} 2. c4 {[%emt 0:00:00]} c6 {[%emt 0:00:08]} 3. Nc3 {[%emt 0:00:00]} Nf6 {[%emt 0:14:20]} 4. e3 {[%emt 0:00:27]} g6 {[%emt 0:00:06]} 5. Nf3 {[%emt 0:01:07]} Bg7 {[%emt 0:00:05]} 6. Be2 {[%emt 0:01:02]} O-O {[%emt 0:00:24]} 7. O-O {[%emt 0:00:05]} Bg4 {[%emt 0:01:46]} 8. cxd5 {[%emt 0:04:47]} cxd5 {[%emt 0:00:52]} 9. Qb3 {[%emt 0:00:10]} b6 {[%emt 0:01:20]} 10. h3 {[%emt 0:01:17]} Bc8 {[%emt 0:01:09]} 11. Ne5 {[%emt 0:03:41]} Bb7 {[%emt 0:02:18]} 12. Bd2 {[%emt 0:09:25]} Nc6 {[%emt 0:03:50]} 13. f4 {[%emt 0:09:33]} e6 {[%emt 0:23:24]} 14. Be1 {[%emt 0:06:06]} Ne8 {[%emt 0:16:40]} 15. Nxc6 {[%emt 0:05:45]} Bxc6 {[%emt 0:00:02]} 16. Rc1 {[%emt 0:00:14]} Nd6 {[%emt 0:07:20]} 17. Nb5 {[%emt 0:03:46]} Bxb5 {[%emt 0:06:54]} 18. Bxb5 {[%emt 0:00:02]} Nxb5 {[%emt 0:01:54]} 19. Qxb5 {[%emt 0:00:02]} Qe8 {[%emt 0:00:28]} 20. Qa6 {[%emt 0:06:00]} Qd7 {[%emt 0:00:08]} 21. Rf2 {[%emt 0:00:31]} Rfc8 {[%emt 0:12:56]} 22. Rfc2 {[%emt 0:00:22]} Rxc2 {[%emt 0:00:18]} 23. Rxc2 {[%emt 0:00:02]} f6 {[%emt 0:02:21]} 24. Bg3 {[%emt 0:12:28]} Re8 {[%emt 0:00:35]} 25. Qd3 {[%emt 0:06:54]} 1/2-1/2

[Event "EIWCC 2018"]
[Site "Vysoke Tatry"]
[Date "2018.04.10"]
[Round "3"]
[White "Richterova, Natasa"]
[Black "Unuk, Laura"]
[Result "0-1"]
[ECO "E06"]
[WhiteElo "2181"]
[BlackElo "2329"]
[Annotator "NA"]
[PlyCount "70"]
[EventDate "2018.??.??"]
[EventType "swiss"]
[EventCountry "SVK"]
[SourceTitle "playchess.com"]
[Source "ChessBase"]
[SourceQuality "1"]
[TimeControl "40/5400+30:1800+30"]

1. Nf3 {[%emt 0:00:00]} d5 {[%emt 0:00:35]} 2. d4 {[%emt 0:00:34]} Nf6 {[%emt 0:00:15]} 3. c4 {[%emt 0:00:36]} e6 {[%emt 0:00:33]} 4. g3 {[%emt 0:00:06]} Be7 {[%emt 0:01:20]} 5. Bg2 {[%emt 0:00:50]} O-O {[%emt 0:00:07]} 6. O-O {[%emt 0:00:09]} dxc4 {[%emt 0:00:24]} 7. Qc2 {[%emt 0:00:19]} b6 {[%emt 0:00:14]} 8. Ne5 {[%emt 0:18:52]} Qxd4 {[%emt 0:02:20]} 9. Bxa8 {[%emt 0:03:46]} Qxe5 {[%emt 0:00:07]} 10. Bf4 {[%emt 0:04:03]} Qh5 {[%emt 0:16:01]} 11. Bf3 {[%emt 0:06:48]} Ng4 {[%emt 0:02:30]} 12. Bxg4 {[%emt 0:00:28]} Qxg4 {[%emt 0:00:04]} 13. f3 {[%emt 0:01:19]} Qh5 {[%emt 0:07:56]} 14. Qxc4 {[%emt 0:05:44]} Bc5+ {[%emt 0:17:47]} 15. Kh1 {[%emt 0:00:48]} e5 {[%emt 0:00:05]} 16. Qd5 {[%emt 0:08:54]} Qh3 {[%emt 0:02:53]} 17. Nc3 {[%emt 0:03:06]} exf4 {[%emt 0:00:13]} 18. gxf4 {[%emt 0:01:25]} Be6 {[%emt 0:00:25]} 19. Qe4 {[%emt 0:05:47]} Nd7 {[%emt 0:02:33]} 20. Qd3 {[%emt 0:05:22]} Nf6 {[%emt 0:05:14]} 21. e3 {[%emt 0:04:30]} b5 {[%emt 0:08:40]} 22. b3 {[%emt 0:03:08]} b4 {[%emt 0:01:01]} 23. Ne2 {[%emt 0:02:14]} Bf5 {[%emt 0:03:01]} 24. Qd2 {[%emt 0:00:26]} Re8 {[%emt 0:05:32]} 25. Nd4 {[%emt 0:05:23]} Bc8 {[%emt 0:14:04]} 26. Rf2 {[%emt 0:05:55]} Nd5 {[%emt 0:02:22]} 27. Rc1 {[%emt 0:03:01]} Bb6 {[%emt 0:00:42]} 28. Re1 {[%emt 0:04:17]} g6 {[%emt 0:00:06]} 29. Nc2 {[%emt 0:03:21]} Bb7 {[%emt 0:02:48]} 30. Kg1 {[%emt 0:01:02]} Kg7 {[%emt 0:00:19]} 31. Nd4 {[%emt 0:01:04]} Nxf4 {[%emt 0:01:19]} 32. Qb2 {[%emt 0:01:09]} Kg8 {[%emt 0:00:23]} 33. Qd2 {[%emt 0:00:14]} Qd7 {[%emt 0:00:47]} 34. Kh1 {[%emt 0:01:17]} Nh3 {[%emt 0:00:59]} 35. Rff1 {[%emt 0:00:54]} c5 {[%emt 0:00:27]} 0-1

[Event "EIWCC 2018"]
[Site "Vysoke Tatry"]
[Date "2018.04.10"]
[Round "3"]
[White "Berke, Ana"]
[Black "Zpevakova, Jana"]
[Result "1-0"]
[ECO "A45"]
[WhiteElo "2173"]
[BlackElo "2106"]
[Annotator "NA"]
[PlyCount "59"]
[EventDate "2018.??.??"]
[EventType "swiss"]
[EventCountry "SVK"]
[SourceTitle "playchess.com"]
[Source "ChessBase"]
[SourceQuality "1"]
[TimeControl "40/5400+30:1800+30"]

1. d4 {[%emt 0:00:00]} Nf6 {[%emt 0:00:21]} 2. Bf4 {[%emt 0:00:00]} d5 {[%emt 0:00:15]} 3. e3 {[%emt 0:00:00]} c5 {[%emt 0:00:15]} 4. c3 {[%emt 0:00:00]} Nc6 {[%emt 0:00:28]} 5. Nd2 {[%emt 0:00:07]} Bf5 {[%emt 0:00:32]} 6. Bb5 {[%emt 0:12:47]} Qb6 {[%emt 0:02:18]} 7. Qa4 {[%emt 0:03:21]} a6 {[%emt 0:09:10]} 8. Bxc6+ {[%emt 0:00:58]} bxc6 {[%emt 0:00:14]} 9. Ngf3 {[%emt 0:04:15]} Nd7 {[%emt 0:07:24]} 10. O-O {[%emt 0:01:57]} f6 {[%emt 0:04:38]} 11. Rfe1 {[%emt 0:03:39]} g5 {[%emt 0:04:11]} 12. Bg3 {[%emt 0:01:10]} Bg6 {[%emt 0:03:16]} 13. h3 {[%emt 0:07:01]} Qb5 {[%emt 0:09:44]} 14. Qd1 {[%emt 0:03:19]} Qxb2 {[%emt 0:02:31]} 15. e4 {[%emt 0:01:45]} Qxc3 {[%emt 0:16:22]} 16. Rc1 {[%emt 0:07:02]} Qa5 {[%emt 0:03:15]} 17. exd5 {[%emt 0:09:00]} cxd5 {[%emt 0:01:10]} 18. Nb3 {[%emt 0:01:24]} Qb5 {[%emt 0:01:15]} 19. Nxc5 {[%emt 0:03:29]} Nxc5 {[%emt 0:08:54]} 20. Rxc5 {[%emt 0:01:17]} Qd7 {[%emt 0:00:24]} 21. Qc1 {[%emt 0:08:53]} Kf7 {[%emt 0:02:19]} 22. Rc7 {[%emt 0:02:27]} Qf5 {[%emt 0:00:32]} 23. Qc6 {[%emt 0:01:02]} Rd8 {[%emt 0:00:59]} 24. Bd6 {[%emt 0:01:57]} Kg7 {[%emt 0:03:57]} 25. Nh2 {[%emt 0:07:39]} h5 {[%emt 0:02:21]} 26. g4 {[%emt 0:07:04]} Qd3 {[%emt 0:01:30]} 27. Bxe7 {[%emt 0:01:38]} Bxe7 {[%emt 0:00:08]} 28. Rexe7+ {[%emt 0:00:34]} Kh6 {[%emt 0:00:31]} 29. Qxf6 {[%emt 0:00:43]} Rdg8 {[%emt 0:03:01]} 30. Nf3 {[%emt 0:00:26]} 1-0

[Event "EIWCC 2018"]
[Site "Vysoke Tatry"]
[Date "2018.04.10"]
[Round "3"]
[White "Stetsko, Lanita"]
[Black "Makka, Ioulia"]
[Result "1/2-1/2"]
[ECO "C01"]
[WhiteElo "2164"]
[BlackElo "2076"]
[Annotator "NA"]
[PlyCount "73"]
[EventDate "2018.??.??"]
[EventType "swiss"]
[EventCountry "SVK"]
[SourceTitle "playchess.com"]
[Source "ChessBase"]
[SourceQuality "1"]
[TimeControl "40/5400+30:1800+30"]

1. e4 {[%emt 0:00:00]} e6 {[%emt 0:00:06]} 2. d4 {[%emt 0:00:00]} d5 {[%emt 0:00:06]} 3. exd5 {[%emt 0:00:00]} exd5 {[%emt 0:00:09]} 4. Nf3 {[%emt 0:00:00]} Bd6 {[%emt 0:01:27]} 5. Bd3 {[%emt 0:00:41]} Bg4 {[%emt 0:03:02]} 6. O-O {[%emt 0:20:36]} Ne7 {[%emt 0:05:00]} 7. c4 {[%emt 0:10:23]} dxc4 {[%emt 0:03:22]} 8. Bxc4 {[%emt 0:00:04]} O-O {[%emt 0:03:29]} 9. Nc3 {[%emt 0:08:47]} Nbc6 {[%emt 0:07:32]} 10. Be3 {[%emt 0:03:25]} Qd7 {[%emt 0:23:09]} 11. h3 {[%emt 0:05:21]} Bh5 {[%emt 0:02:27]} 12. Be2 {[%emt 0:12:06]} Rad8 {[%emt 0:08:20]} 13. Qb3 {[%emt 0:04:06]} Qc8 {[%emt 0:12:53]} 14. Ne4 {[%emt 0:07:19]} a6 {[%emt 0:03:33]} 15. Nc5 {[%emt 0:02:19]} Na5 {[%emt 0:11:48]} 16. Qa4 {[%emt 0:01:41]} Nac6 {[%emt 0:01:05]} 17. Qb3 {[%emt 0:00:13]} Na5 {[%emt 0:00:39]} 18. Qa4 {[%emt 0:00:22]} Nac6 {[%emt 0:00:25]} 19. Rac1 {[%emt 0:00:59]} Nb8 {[%emt 0:01:23]} 20. Rfe1 {[%emt 0:05:41]} Nd7 {[%emt 0:02:06]} 21. Nxd7 {[%emt 0:00:50]} Qxd7 {[%emt 0:04:25]} 22. Qb3 {[%emt 0:01:42]} Qc8 {[%emt 0:00:59]} 23. Bg5 {[%emt 0:01:29]} Rde8 {[%emt 0:00:48]} 24. Bxe7 {[%emt 0:05:17]} Rxe7 {[%emt 0:00:55]} 25. Ne5 {[%emt 0:01:35]} Bxe2 {[%emt 0:01:19]} 26. Rxe2 {[%emt 0:00:02]} b6 {[%emt 0:01:09]} 27. Rce1 {[%emt 0:00:59]} Qf5 {[%emt 0:01:24]} 28. Re3 {[%emt 0:03:15]} Bxe5 {[%emt 0:00:44]} 29. Rxe5 {[%emt 0:00:41]} Rxe5 {[%emt 0:00:08]} 30. dxe5 {[%emt 0:00:12]} a5 {[%emt 0:00:32]} 31. Qc4 {[%emt 0:01:08]} Qd7 {[%emt 0:00:45]} 32. e6 {[%emt 0:03:17]} fxe6 {[%emt 0:00:14]} 33. Rxe6 {[%emt 0:00:31]} Kh8 {[%emt 0:00:50]} 34. Qe2 {[%emt 0:00:20]} Qd4 {[%emt 0:00:41]} 35. Re8 {[%emt 0:00:58]} Qf6 {[%emt 0:00:25]} 36. f3 {[%emt 0:00:51]} h6 {[%emt 0:00:14]} 37. Rxf8+ {[%emt 0:00:26]} 1/2-1/2

[Event "EIWCC 2018"]
[Site "Vysoke Tatry"]
[Date "2018.04.10"]
[Round "3"]
[White "Huda, Maryana"]
[Black "Klek, Hanna Marie"]
[Result "1/2-1/2"]
[ECO "D58"]
[WhiteElo "2161"]
[BlackElo "2327"]
[Annotator "NA"]
[PlyCount "93"]
[EventDate "2018.??.??"]
[EventType "swiss"]
[EventCountry "SVK"]
[SourceTitle "playchess.com"]
[Source "ChessBase"]
[SourceQuality "1"]
[TimeControl "40/5400+30:1800+30"]

1. d4 {[%emt 0:00:00]} d5 {[%emt 0:00:05]} 2. c4 {[%emt 0:00:00]} e6 {[%emt 0:00:03]} 3. Nc3 {[%emt 0:00:00]} Be7 {[%emt 0:00:05]} 4. Nf3 {[%emt 0:00:05]} Nf6 {[%emt 0:00:06]} 5. Bg5 {[%emt 0:00:51]} h6 {[%emt 0:00:08]} 6. Bh4 {[%emt 0:03:35]} O-O {[%emt 0:00:07]} 7. e3 {[%emt 0:00:27]} b6 {[%emt 0:00:04]} 8. Bd3 {[%emt 0:01:03]} dxc4 {[%emt 0:00:10]} 9. Bxc4 {[%emt 0:00:08]} Bb7 {[%emt 0:00:06]} 10. O-O {[%emt 0:00:47]} a6 {[%emt 0:00:05]} 11. Rc1 {[%emt 0:02:46]} b5 {[%emt 0:00:19]} 12. Bd3 {[%emt 0:05:34]} Nbd7 {[%emt 0:00:38]} 13. Qe2 {[%emt 0:02:21]} c5 {[%emt 0:03:40]} 14. Bxf6 {[%emt 0:10:19]} Bxf6 {[%emt 0:00:12]} 15. Be4 {[%emt 0:01:30]} Bxe4 {[%emt 0:09:44]} 16. Nxe4 {[%emt 0:01:38]} c4 {[%emt 0:00:44]} 17. a4 {[%emt 0:03:08]} Be7 {[%emt 0:08:22]} 18. Rfd1 {[%emt 0:13:57]} Nb6 {[%emt 0:04:16]} 19. axb5 {[%emt 0:06:43]} axb5 {[%emt 0:00:06]} 20. Ne5 {[%emt 0:02:38]} Qe8 {[%emt 0:01:24]} 21. Ra1 {[%emt 0:07:07]} f6 {[%emt 0:06:59]} 22. Nf3 {[%emt 0:00:13]} Qc6 {[%emt 0:00:31]} 23. Qc2 {[%emt 0:01:10]} Nd5 {[%emt 0:01:40]} 24. Ng3 {[%emt 0:07:59]} Rxa1 {[%emt 0:07:13]} 25. Rxa1 {[%emt 0:00:04]} Ra8 {[%emt 0:00:08]} 26. Rb1 {[%emt 0:06:25]} Ra2 {[%emt 0:07:58]} 27. Qg6 {[%emt 0:02:46]} Qd7 {[%emt 0:02:40]} 28. Nh5 {[%emt 0:00:25]} Bd8 {[%emt 0:00:12]} 29. e4 {[%emt 0:00:51]} Nb4 {[%emt 0:04:07]} 30. d5 {[%emt 0:11:27]} exd5 {[%emt 0:03:32]} 31. Nd4 {[%emt 0:01:29]} Nd3 {[%emt 0:10:33]} 32. exd5 {[%emt 0:03:04]} Ne5 {[%emt 0:02:57]} 33. Qe4 {[%emt 0:00:41]} Bb6 {[%emt 0:07:28]} 34. Nf5 {[%emt 0:01:21]} Qa7 {[%emt 0:02:26]} 35. Nfxg7 {[%emt 0:02:38]} Bxf2+ {[%emt 0:01:09]} 36. Kh1 {[%emt 0:00:14]} Qe3 {[%emt 0:10:26]} 37. Qf5 {[%emt 0:00:32]} Qd3 {[%emt 0:02:08]} 38. Nxf6+ {[%emt 0:00:40]} Kxg7 {[%emt 0:00:07]} 39. Ne8+ {[%emt 0:01:03]} Kg8 {[%emt 0:00:19]} 40. Nf6+ {[%emt 0:00:00]} Kh8 {[%emt 0:05:22]} 41. Qc8+ {[%emt 0:02:20]} Kg7 {[%emt 0:00:11]} 42. Nh5+ {[%emt 0:01:55]} Kf7 {[%emt 0:00:58]} 43. Qc7+ {[%emt 0:01:11]} Kf8 {[%emt 0:00:59]} 44. Qd8+ {[%emt 0:06:41]} Kf7 {[%emt 0:00:07]} 45. Qc7+ {[%emt 0:02:19]} Kf8 {[%emt 0:00:10]} 46. Qd8+ {[%emt 0:00:18]} Kf7 {[%emt 0:00:06]} 47. Qc7+ {[%emt 0:00:05]} 1/2-1/2

[Event "EIWCC 2018"]
[Site "Vysoke Tatry"]
[Date "2018.04.10"]
[Round "3"]
[White "Smirnova, Ekaterina"]
[Black "Yildiz Kadioglu, Betul Cemre"]
[Result "1/2-1/2"]
[ECO "E53"]
[WhiteElo "2153"]
[BlackElo "2286"]
[Annotator "NA"]
[PlyCount "139"]
[EventDate "2018.??.??"]
[EventType "swiss"]
[EventCountry "SVK"]
[SourceTitle "playchess.com"]
[Source "ChessBase"]
[SourceQuality "1"]
[TimeControl "40/5400+30:1800+30"]

1. d4 {[%emt 0:00:00]} Nf6 {[%emt 0:00:05]} 2. c4 {[%emt 0:00:00]} e6 {[%emt 0:00:07]} 3. Nc3 {[%emt 0:00:00]} Bb4 {[%emt 0:00:20]} 4. e3 {[%emt 0:00:01]} O-O {[%emt 0:00:39]} 5. Bd3 {[%emt 0:00:22]} d5 {[%emt 0:01:00]} 6. Nf3 {[%emt 0:00:11]} c5 {[%emt 0:01:17]} 7. cxd5 {[%emt 0:00:17]} exd5 {[%emt 0:00:17]} 8. dxc5 {[%emt 0:00:09]} Nbd7 {[%emt 0:00:10]} 9. O-O {[%emt 0:01:38]} Nxc5 {[%emt 0:00:05]} 10. Be2 {[%emt 0:00:03]} Nce4 {[%emt 0:00:08]} 11. Nxe4 {[%emt 0:20:57]} dxe4 {[%emt 0:00:23]} 12. Qxd8 {[%emt 0:00:20]} Rxd8 {[%emt 0:00:02]} 13. Nd4 {[%emt 0:00:08]} Bg4 {[%emt 0:00:05]} 14. Bxg4 {[%emt 0:04:49]} Nxg4 {[%emt 0:00:04]} 15. a3 {[%emt 0:04:55]} Bc5 {[%emt 0:00:07]} 16. Nb3 {[%emt 0:00:32]} Bd6 {[%emt 0:00:05]} 17. h3 {[%emt 0:00:26]} Nf6 {[%emt 0:00:06]} 18. Bd2 {[%emt 0:04:54]} Be5 {[%emt 0:00:05]} 19. Nd4 {[%emt 0:00:29]} Bxd4 {[%emt 0:15:44]} 20. exd4 {[%emt 0:00:02]} Rxd4 {[%emt 0:00:21]} 21. Bc3 {[%emt 0:00:06]} Rc4 {[%emt 0:06:27]} 22. Bxf6 {[%emt 0:01:00]} gxf6 {[%emt 0:00:03]} 23. Rad1 {[%emt 0:00:31]} Rac8 {[%emt 0:00:46]} 24. b4 {[%emt 0:12:02]} Rc3 {[%emt 0:03:19]} 25. Rfe1 {[%emt 0:00:15]} Rd3 {[%emt 0:14:33]} 26. Ra1 {[%emt 0:11:09]} Rc4 {[%emt 0:03:00]} 27. b5 {[%emt 0:03:26]} Ra4 {[%emt 0:06:06]} 28. b6 {[%emt 0:03:28]} axb6 {[%emt 0:14:27]} 29. Rab1 {[%emt 0:01:21]} Rdxa3 {[%emt 0:05:17]} 30. Rxb6 {[%emt 0:00:11]} Ra1 {[%emt 0:00:07]} 31. Rxa1 {[%emt 0:02:14]} Rxa1+ {[%emt 0:00:03]} 32. Kh2 {[%emt 0:00:04]} Rf1 {[%emt 0:05:14]} 33. Kg3 {[%emt 0:02:48]} f5 {[%emt 0:00:34]} 34. Rxb7 {[%emt 0:00:36]} f4+ {[%emt 0:00:16]} 35. Kxf4 {[%emt 0:00:02]} Rxf2+ {[%emt 0:00:03]} 36. Kxe4 {[%emt 0:00:07]} Rxg2 {[%emt 0:00:04]} 37. Kf4 {[%emt 0:00:47]} Kg7 {[%emt 0:00:09]} 38. Rb6 {[%emt 0:01:03]} h6 {[%emt 0:00:59]} 39. Rb5 {[%emt 0:02:52]} Rg6 {[%emt 0:00:29]} 40. Ra5 {[%emt 0:00:00]} Rb6 {[%emt 0:00:16]} 41. h4 {[%emt 0:10:44]} Rb4+ {[%emt 0:03:52]} 42. Kg3 {[%emt 0:00:09]} Re4 {[%emt 0:00:06]} 43. Rb5 {[%emt 0:00:35]} Kg6 {[%emt 0:01:08]} 44. Ra5 {[%emt 0:04:23]} Re1 {[%emt 0:01:32]} 45. h5+ {[%emt 0:04:00]} Kf6 {[%emt 0:00:27]} 46. Kf4 {[%emt 0:00:09]} Re6 {[%emt 0:02:41]} 47. Rf5+ {[%emt 0:01:59]} Kg7 {[%emt 0:00:02]} 48. Ra5 {[%emt 0:00:15]} Rb6 {[%emt 0:00:04]} 49. Rc5 {[%emt 0:00:24]} Rb4+ {[%emt 0:00:06]} 50. Kf3 {[%emt 0:00:12]} Kf6 {[%emt 0:00:41]} 51. Ra5 {[%emt 0:00:37]} Rd4 {[%emt 0:00:08]} 52. Rb5 {[%emt 0:02:04]} Ke6 {[%emt 0:00:25]} 53. Rb6+ {[%emt 0:02:27]} Rd6 {[%emt 0:00:20]} 54. Rb5 {[%emt 0:00:09]} f5 {[%emt 0:19:29]} 55. Rb8 {[%emt 0:02:55]} Kf6 {[%emt 0:01:37]} 56. Rg8 {[%emt 0:00:43]} Kf7 {[%emt 0:00:22]} 57. Ra8 {[%emt 0:00:52]} Kf6 {[%emt 0:01:04]} 58. Rg8 {[%emt 0:00:08]} Ke5 {[%emt 0:02:24]} 59. Re8+ {[%emt 0:01:02]} Re6 {[%emt 0:00:01]} 60. Rh8 {[%emt 0:00:44]} Ra6 {[%emt 0:00:49]} 61. Re8+ {[%emt 0:00:19]} Kf6 {[%emt 0:00:06]} 62. Rg8 {[%emt 0:00:18]} Rd6 {[%emt 0:00:43]} 63. Ke3 {[%emt 0:07:46]} Ke5 {[%emt 0:01:52]} 64. Re8+ {[%emt 0:01:04]} Re6 {[%emt 0:00:02]} 65. Rf8 {[%emt 0:02:00]} Ra6 {[%emt 0:00:20]} 66. Re8+ {[%emt 0:00:31]} Kf6 {[%emt 0:00:04]} 67. Rg8 {[%emt 0:00:25]} Ra3+ {[%emt 0:00:30]} 68. Kf4 {[%emt 0:00:28]} Ra4+ {[%emt 0:00:08]} 69. Kf3 {[%emt 0:01:37]} Ra3+ {[%emt 0:03:52]} 70. Kf4 {Ke5+ Ke4+} 1/2-1/2

[Event "EIWCC 2018"]
[Site "Vysoke Tatry"]
[Date "2018.04.10"]
[Round "3"]
[White "Cosman, Andreea-Marioara"]
[Black "Palma, Maria"]
[Result "1-0"]
[ECO "A58"]
[WhiteElo "2141"]
[BlackElo "2060"]
[Annotator "NA"]
[PlyCount "73"]
[EventDate "2018.??.??"]
[EventType "swiss"]
[EventCountry "SVK"]
[SourceTitle "playchess.com"]
[Source "ChessBase"]
[SourceQuality "1"]
[TimeControl "40/5400+30:1800+30"]

1. d4 {[%emt 0:00:00]} Nf6 {[%emt 0:00:08]} 2. c4 {[%emt 0:00:00]} c5 {[%emt 0:00:04]} 3. d5 {[%emt 0:00:00]} b5 {[%emt 0:00:05]} 4. cxb5 {[%emt 0:00:00]} a6 {[%emt 0:00:05]} 5. bxa6 {[%emt 0:00:00]} e6 {[%emt 0:00:05]} 6. Nc3 {[%emt 0:00:00]} exd5 {[%emt 0:00:06]} 7. Nxd5 {[%emt 0:00:03]} Be7 {[%emt 0:00:08]} 8. Nxe7 {[%emt 0:09:49]} Qxe7 {[%emt 0:00:15]} 9. a7 {[%emt 0:01:41]} Nc6 {[%emt 0:03:07]} 10. Bf4 {[%emt 0:11:51]} d5 {[%emt 0:02:28]} 11. e3 {[%emt 0:01:47]} O-O {[%emt 0:03:13]} 12. Bb5 {[%emt 0:10:59]} Nxa7 {[%emt 0:06:17]} 13. Be2 {[%emt 0:01:23]} Rd8 {[%emt 0:08:44]} 14. Bf3 {[%emt 0:12:06]} Nc6 {[%emt 0:06:59]} 15. Ne2 {[%emt 0:03:15]} Bf5 {[%emt 0:12:23]} 16. O-O {[%emt 0:02:45]} Ne5 {[%emt 0:07:30]} 17. Bxe5 {[%emt 0:07:40]} Qxe5 {[%emt 0:00:13]} 18. b4 {[%emt 0:02:49]} cxb4 {[%emt 0:08:47]} 19. Nd4 {[%emt 0:00:07]} Bd7 {[%emt 0:01:06]} 20. Qd2 {[%emt 0:01:33]} Ra4 {[%emt 0:05:44]} 21. Rfb1 {[%emt 0:00:39]} Qd6 {[%emt 0:01:44]} 22. Bd1 {[%emt 0:01:50]} Ne4 {[%emt 0:03:47]} 23. Qb2 {[%emt 0:00:31]} Ra5 {[%emt 0:03:46]} 24. Qxb4 {[%emt 0:00:30]} Qxb4 {[%emt 0:02:04]} 25. Rxb4 {[%emt 0:00:09]} Nc3 {[%emt 0:01:42]} 26. Bb3 {[%emt 0:03:12]} Rda8 {[%emt 0:01:08]} 27. Rb7 {[%emt 0:07:38]} Be8 {[%emt 0:03:07]} 28. h3 {[%emt 0:03:51]} g6 {[%emt 0:02:54]} 29. Rc1 {[%emt 0:01:40]} Nxa2 {[%emt 0:02:44]} 30. Rcc7 {[%emt 0:00:14]} Rd8 {[%emt 0:07:52]} 31. h4 {[%emt 0:03:57]} Kf8 {[%emt 0:05:17]} 32. Nf3 {[%emt 0:04:46]} h6 {[%emt 0:01:58]} 33. Ne5 {[%emt 0:01:00]} Rda8 {[%emt 0:00:51]} 34. Nxf7 {[%emt 0:05:10]} Nc1 {[%emt 0:00:06]} 35. Nxh6 {[%emt 0:00:36]} Nxb3 {[%emt 0:00:20]} 36. Rh7 {[%emt 0:00:30]} Bd7 {[%emt 0:01:04]} 37. Rbxd7 {[%emt 0:00:15]} 1-0